[Event "44th Chess Olympiad Open 2022"]
[Site "Chennai"]
[Date "2022.07.29"]
[Round "1.12"]
[White "Rakotomaharavo, Dylan"]
[Black "Hovhannisyan, Robert"]
[Result "0-1"]
[WhiteElo "1948"]
[BlackElo "2591"]
[Annotator "TA"]
[PlyCount "126"]
[EventDate "2022.??.??"]
[TimeControl "60"]

{[%evp 10,126,9,5,18,0,0,0,0,3,6,8,22,22,23,-18,-12,-14,0,-11,-8,-14,-10,-4,-7,
-11,0,-22,-18,-25,-17,-15,-22,-27,-31,-35,-45,-52,-66,-60,-62,-55,-51,-52,-50,
-48,-35,-37,-33,-35,-11,-12,-11,-14,-25,-36,-28,-15,0,-8,0,0,0,0,0,0,0,0,0,0,0,
0,0,0,0,-21,0,-8,0,0,0,0,0,0,0,0,0,0,0,0,0,0,0,0,0,-8,-8,-8,-8,-8,-8,-8,0,-8,
-8,-8,-8,-8,-8,-29968,-29967,-29969,-29970,-29974,-29976,-29979,-29979,-29979,
-29980]} 1. e4 {[%emt 0:00:12]} c6 {[%emt 0:00:11]} 2. Nf3 {[%emt 0:01:26]} d5
{[%emt 0:00:12]} 3. Nc3 {[%emt 0:00:08]} Bg4 {[%emt 0:00:40]} 4. h3 {[%emt 0:
00:00]} Bxf3 {[%emt 0:00:16]} 5. Qxf3 {[%emt 0:00:07]} e6 {[%emt 0:00:15]} 6.
Be2 {[%emt 0:01:48]} Bc5 {[%emt 0:03:48] B11: Caro-Kann: Two Knights Variation.
} 7. d3 {[%emt 0:04:14]} Ne7 {[%emt 0:03:26]} 8. O-O {[%emt 0:02:35]} O-O {
[%emt 0:02:05] The position is equal.} 9. Rd1 {[%emt 0:01:58]} Bd4 {[%emt 0:00:
00] [#]} 10. Bf1 $146 {[%emt 0:04:32]} ({Predecessor:} 10. Nb1 f5 11. exd5 exd5
12. c3 Bb6 13. d4 Nd7 14. c4 Nf6 15. Nc3 Ne4 16. Bf4 {0-1 (53) Girinath,P 
(2361)-Fedoseev,V (2701) Chess.com INT 2022}) 10... Nd7 {[%emt 0:05:20]} 11.
Ne2 {[%emt 0:00:48]} Bb6 {[%emt 0:01:41]} 12. Be3 {[%emt 0:01:17]} Bxe3 {
[%emt 0:03:47]} 13. Qxe3 {[%emt 0:00:10]} Qb6 {[%emt 0:00:53]} 14. Qxb6 {
[%emt 0:04:04]} axb6 {[%emt 0:02:37]} 15. exd5 {[%emt 0:06:45]} Nxd5 {[%emt 0:
00:00]} 16. c4 {[%emt 0:02:52]} Ne7 {[%emt 0:06:14]} 17. d4 {[%emt 0:00:16]}
Rfd8 {[%emt 0:01:30]} 18. Nc3 {[%emt 0:02:46]} Nf6 {[%emt 0:08:20]} 19. Rd3 {
[%emt 0:02:53]} Kf8 {[%emt 0:06:53]} 20. Rad1 {[%emt 0:00:23]} h5 {[%emt 0:00:
00]} 21. Be2 {[%emt 0:02:41]} Rd6 {[%emt 0:02:56]} 22. Bf3 {[%emt 0:07:31]}
Rad8 {[%emt 0:02:14]} 23. Ne4 {[%emt 0:03:55]} Nxe4 {[%emt 0:00:45]} 24. Bxe4 {
[%emt 0:00:10]} f5 {[%emt 0:03:24]} 25. Bf3 {[%emt 0:00:47]} h4 {[%emt 0:00:43]
[%cal Ye6e5]} 26. Be2 {[%emt 0:06:34]} Ng6 {[%emt 0:03:45] And now ...Nf4
would win.} 27. g3 {[%emt 0:00:16] Prevents Nf4.} Ke7 {[%emt 0:01:43]} 28. Kg2
{[%emt 0:00:38]} c5 {[%emt 0:06:07][%cal Rc5d4]} 29. dxc5 {[%emt 0:00:32]} bxc5
{[%emt 0:00:14]} 30. Rxd6 {[%emt 0:02:00]} Rxd6 {[%emt 0:00:04]} 31. Rxd6 {
[%emt 0:00:07]} Kxd6 $15 {[%emt 0:00:04] Endgame KB-KN} 32. Kf3 {[%emt 0:00:57]
} hxg3 {[%emt 0:04:10]} 33. fxg3 {[%emt 0:00:08]} b6 {[%emt 0:00:00]} 34. Ke3 {
[%emt 0:05:07]} Ne5 {[%emt 0:02:46]} 35. Kf4 {[%emt 0:00:41]} Nc6 {[%emt 0:01:
56]} 36. Bd3 {[%emt 0:03:02]} Ke7 {[%emt 0:02:11]} 37. Kg5 {[%emt 0:01:52]} Kf7
{[%emt 0:01:28]} 38. a3 {[%emt 0:07:27]} g6 {[%emt 0:01:46]} 39. g4 {[%emt 0:
01:03]} Kg7 {[%emt 0:01:21]} 40. Bf1 {[%emt 0:02:45]} Ne5 {[%emt 0:04:26]} 41.
Kf4 {[%emt 0:33:32]} Nf7 {[%emt 0:31:06]} 42. Be2 {[%emt 0:00:00]} Kf6 {
[%emt 0:05:29]} 43. h4 {[%emt 0:01:10]} g5+ {[%emt 0:04:33]} 44. hxg5+ {
[%emt 0:00:12]} Nxg5 {[%emt 0:00:05] [#] Strongly threatening ...e5+.} 45. gxf5
{[%emt 0:00:40]} exf5 {[%emt 0:00:06]} 46. Bf1 {[%emt 0:04:11]} Ne6+ {[%emt 0:
00:11]} 47. Ke3 {[%emt 0:00:07]} Ke5 {[%emt 0:02:52]} 48. b4 {[%emt 0:00:00]}
Kd6 {[%emt 0:00:30]} 49. Bd3 {[%emt 0:01:34]} Ke5 {[%emt 0:00:25]} 50. Bf1 {
[%emt 0:00:24]} Nd4 {[%emt 0:00:29]} 51. Kd3 {[%emt 0:00:25]} Nc6 {[%emt 0:00:
00]} 52. Kc3 {[%emt 0:00:00]} Kd6 {[%emt 0:00:00]} 53. Bd3 {[%emt 0:00:00]} f4
{[%emt 0:00:00][%cal Yf5f4,Yf4f3,Yf3f2] With the idea ... Ke5.} 54. Be4 {
[%emt 0:00:00] Hoping for Bxc6.} Ne5 {[%emt 0:00:00]} 55. a4 {[%emt 0:00:00]}
Nc6 {[%emt 0:00:00]} (55... f3 $5 56. a5 f2 $11) 56. bxc5+ {[%emt 0:00:00]}
Kxc5 {[%emt 0:00:00]} 57. Bd3 Ne5 {[%emt 0:00:00]} 58. Bf1 f3 {[%emt 0:00:00] 
( -> ...Ng4)} 59. Kb3 $2 {This costs White the game.} (59. Bh3 $11) 59... f2 {
[%emt 0:00:00] Black mates.} ({Weaker is} 59... Kd4 60. Kb4 $11) 60. Be2 {[#]}
Nf3 $1 {[%emt 0:00:00]} 61. Ka3 (61. Kc3 Nh2) 61... Nd2 {[%emt 0:00:00]} 62. a5
bxa5 {[%emt 0:00:00]} 63. Ka4 Nxc4 {[%emt 0:00:00] Weighted Error Value:
White=0.16 (very precise) /Black=0.02 (flawless)} 0-1

[Event "44th Chess Olympiad Open 2022"]
[Site "Chennai"]
[Date "2022.07.29"]
[Round "1.13"]
[White "Idani, Pouya"]
[Black "Rocha, Maximiliano"]
[Result "1-0"]
[WhiteElo "2641"]
[BlackElo "2117"]
[Annotator "RC"]
[PlyCount "41"]
[EventDate "2022.??.??"]
[TimeControl "60"]

1. Nf3 {[%emt 0:00:02]} Nf6 {[%emt 0:00:15]} 2. c4 {[%emt 0:00:05]} c6 {
[%emt 0:00:54]} 3. g3 {[%emt 0:00:07]} d5 {[%emt 0:00:08]} 4. d4 {[%emt 0:00:
00]} e6 {[%emt 0:00:38]} 5. Bg2 {[%emt 0:00:12]} Bb4+ {[%emt 0:00:54]} 6. Nc3 {
[%emt 0:02:51]} O-O {[%emt 0:01:33]} 7. O-O {[%emt 0:00:05]} b6 {[%emt 0:04:14]
} 8. Ne5 {[%emt 0:05:13]} Nfd7 {[%emt 0:00:51]} 9. cxd5 {[%emt 0:02:40]} cxd5 {
[%emt 0:01:17]} 10. Nxd5 {[%emt 0:04:03]} exd5 {[%emt 0:05:17]} 11. Bxd5 {
[%emt 0:00:22]} Nxe5 {[%emt 0:00:15]} 12. dxe5 {[%emt 0:00:06]} Qe7 {[%emt 0:
00:00]} 13. Bxa8 {[%emt 0:00:17]} Qxe5 {[%emt 0:00:13]} 14. Bf4 {[%emt 0:00:57]
} Qxb2 {[%emt 0:00:59]} 15. Rb1 {[%emt 0:00:22]} Qa3 {[%emt 0:00:09]} 16. Bxb8
{[%emt 0:00:41]} Bh3 {[%emt 0:00:02]} 17. Rb3 {[%emt 0:02:30]} Qa5 {[%emt 0:00:
00]} 18. Rxb4 {[%emt 0:06:26]} Bxf1 {[%emt 0:02:28]} 19. Rd4 {[%emt 0:00:16]}
Bxe2 {[%emt 0:02:44]} 20. Qxe2 {[%emt 0:00:06]} Rxb8 {[%emt 0:01:03]} 21. Qe7 {
[%emt 0:00:13]} 1-0

[Event "44th Chess Olympiad Open 2022"]
[Site "Chennai"]
[Date "2022.07.29"]
[Round "1.13"]
[White "Idani Pouya"]
[Black "Rocha Maximiliano"]
[Result "1-0"]
[WhiteElo "2641"]
[BlackElo "2117"]
[Annotator "TA"]
[PlyCount "41"]
[EventDate "2022.??.??"]
[TimeControl "60"]

{[%evp 9,41,21,25,19,16,13,37,46,125,111,114,122,121,120,117,132,347,355,334,
356,548,548,754,577,642,650,648,641,631,566,744,720,672,587]} 1. Nf3 {[%emt 0:
00:00]} Nf6 {[%emt 0:00:15]} 2. c4 {[%emt 0:00:05]} c6 {[%emt 0:00:54]} 3. g3 {
[%emt 0:00:07]} d5 {[%emt 0:00:08]} 4. d4 {[%emt 0:00:05]} e6 {[%emt 0:00:38]}
5. Bg2 {[%emt 0:00:12]} Bb4+ {[%emt 0:00:54]} 6. Nc3 {[%emt 0:02:51] E01:
Catalan: Early deviations.} O-O {[%emt 0:01:33]} 7. O-O {[%emt 0:00:05]} b6 {
[%emt 0:04:14]} 8. Ne5 {[%emt 0:05:13] White is slightly better.} Nfd7 {
[%emt 0:00:51]} (8... Bb7 $14) 9. cxd5 $16 {[%emt 0:02:40] 0x0.
0013b9c7599bdp-1022s more active pieces.} cxd5 {[%emt 0:01:17] [#]} 10. Nxd5 $1
{[%emt 0:04:03]} exd5 {[%emt 0:05:17]} 11. Bxd5 {[%emt 0:00:22] Hoping for Nd3.
} Nxe5 {[%emt 0:00:15]} 12. dxe5 {[%emt 0:00:06] [#]} Qe7 $146 {[%emt 0:00:18]}
(12... Bh3 $16 {was called for.}) ({Predecessor:} 12... Bh3 13. Bxa8 Bxf1 14.
Qxf1 Nd7 15. Bd5 Nxe5 16. e4 Qf6 17. f4 Ng4 18. e5 Qg6 {0-1 (26) Flom,G (2474)
-Makhnev,D (2480) Europe Echecs INT 2021}) 13. Bxa8 $18 {[%emt 0:00:00]} Qxe5 {
[%emt 0:00:13]} 14. Bf4 {[%emt 0:00:57]} Qxb2 {[%emt 0:00:59]} (14... Qf6 $142
15. Bg2 Be6) 15. Rb1 {[%emt 0:00:22][%cal Ya1b1,Yb1b3,Yb3b4,Yb4d4] White is
clearly winning.} Qa3 {[%emt 0:00:09]} 16. Bxb8 {[%emt 0:00:41][%cal Yb1b4]
Strongly threatening Rxb4!} Bh3 {[%emt 0:00:02]} 17. Rb3 {[%emt 0:02:30]} Qa5 {
[%emt 0:00:54] [#]} 18. Rxb4 $1 {[%emt 0:06:26]} Bxf1 {[%emt 0:02:28] [#]} 19.
Rd4 {[%emt 0:00:16]} Bxe2 {[%emt 0:02:44]} (19... Bh3 20. Be4) 20. Qxe2 {
[%emt 0:00:06][%cal Ya8d5] aiming for Bd5!} Rxb8 {[%emt 0:00:00] [#]} 21. Qe7
$1 {[%emt 0:00:13] White took control after the opening. Weighted Error Value:
White=0.17 (very precise) /Black=0.54} 1-0

[Event "44th Chess Olympiad Open 2022"]
[Site "Chennai"]
[Date "2022.07.29"]
[Round "1.13"]
[White "Daneshvar, Bardiya"]
[Black "Espinoza Solano, Jose Nahum"]
[Result "1-0"]
[WhiteElo "2490"]
[BlackElo "2093"]
[Annotator "TA"]
[PlyCount "145"]
[EventDate "2022.??.??"]
[TimeControl "60"]

{[%evp 19,145,36,40,31,34,35,45,43,51,39,41,35,63,68,63,57,79,52,86,98,91,85,
91,54,70,24,15,19,17,4,31,30,46,34,65,52,92,0,68,48,46,36,83,88,189,194,316,
295,288,219,222,219,290,243,264,264,274,272,331,309,360,261,295,297,316,317,
479,460,468,460,447,445,442,382,588,579,565,439,498,517,533,527,532,514,489,
480,523,543,573,573,573,573,562,0,562,562,536,487,508,481,610,609,595,528,577,
552,592,577,532,544,548,641,826,892,875,872,808,817,804,790,730,692,1366,1354,
29981,29982,29978,29969]} 1. d4 {[%emt 0:00:04]} Nf6 {[%emt 0:00:36]} 2. c4 {
[%emt 0:00:11]} g6 {[%emt 0:00:06]} 3. Nc3 {[%emt 0:00:04]} Bg7 {[%emt 0:00:17]
} 4. e4 {[%emt 0:00:06]} d6 {[%emt 0:00:06]} 5. Nf3 {[%emt 0:00:05]} O-O {
[%emt 0:00:07]} 6. Be2 {[%emt 0:00:04]} e5 {[%emt 0:00:10]} 7. O-O {[%emt 0:00:
00]} Nc6 {[%emt 0:00:07]} 8. d5 {[%emt 0:00:05]} Ne7 {[%emt 0:00:06]} 9. b4 {
[%emt 0:00:05]} Nh5 {[%emt 0:02:14]} 10. Re1 {[%emt 0:01:10]} f5 {[%emt 0:00:
00]} 11. a4 {[%emt 0:01:11] E97: King's Indian: Classical Main Line (6...e5 7
0-0 Nc6): 8 Be3 and 8 d5 Ne7, not 9 Ne1.} Nf6 {[%emt 0:04:47]} 12. a5 {[%emt 0:
00:00]} fxe4 {[%emt 0:02:32]} 13. Ng5 {[%emt 0:01:03] White is slightly better.
} e3 {[%emt 0:00:13]} 14. Bxe3 {[%emt 0:00:44]} Nf5 {[%emt 0:00:17]} 15. Bd2 {
[%emt 0:01:05] [#]} h6 $146 {[%emt 0:03:22]} ({Predecessor:} 15... a6 16. Rc1
Nd4 17. f3 Bf5 18. Bf1 Nh5 19. Nge4 Nf4 20. Be3 Kh8 21. Nf2 Bd7 {1-0 (42)
Gonzaga Grego,L (2402)-Brasier,J (2428) ICCF email 2019}) 16. Nge4 {[%emt 0:00:
00]} Nd4 {[%emt 0:04:26]} 17. Ng3 {[%emt 0:04:59]} (17. Nxf6+ {is interesting.}
Qxf6 18. Ne4 Qf7 19. Bd3) 17... Nxe2+ {[%emt 0:07:07]} 18. Rxe2 {[%emt 0:03:14]
[%cal Ya5a6]} Bf5 {[%emt 0:17:39]} 19. Nxf5 {[%emt 0:05:33]} gxf5 {[%emt 0:00:
00]} 20. a6 {[%emt 0:01:39]} b6 {[%emt 0:00:46]} 21. Ra3 {[%emt 0:01:04]} Qd7 {
[%emt 0:05:37]} 22. Qa4 {[%emt 0:03:34] Inhibits c6.} (22. Qc2 $14) 22... Qxa4
$11 {[%emt 0:03:09]} 23. Rxa4 {[%emt 0:00:29]} Rfc8 {[%emt 0:00:21]} 24. b5 {
[%emt 0:04:28]} Nd7 {[%emt 0:02:02]} 25. Na2 {[%emt 0:02:19]} Re8 {[%emt 0:00:
00]} 26. Nb4 {[%emt 0:00:55]} Kh7 {[%emt 0:01:39]} 27. Nc6 {[%emt 0:03:29]} Nb8
{[%emt 0:01:03]} 28. Nb4 {[%emt 0:05:42] White is much more active. The black
rooks are badly placed.} Nd7 {[%emt 0:00:09]} 29. Ra2 {[%emt 0:01:00]} Kg6 {
[%emt 0:02:35]} 30. Ra3 {[%emt 0:05:32]} Kh7 {[%emt 0:04:54]} (30... Bf6 $14 {
might be stronger.}) 31. Nc6 $16 {[%emt 0:02:06][%cal Yb4c6,Yc6d4,Yd4f5] White
stays focused until the end.} Nb8 {[%emt 0:00:06]} (31... Rf8 $16 {was
necessary.}) 32. Nd4 $1 $18 {[%emt 0:02:13]} Nd7 {[%emt 0:03:58]} (32... Nxa6
$142 33. Nxf5 (33. Rxa6 exd4 34. Kf1 d3 $11) 33... Nc5) 33. Nxf5 {[%emt 0:00:
00]} Rf8 {[%emt 0:00:09]} 34. Ne7 {[%emt 0:01:41]} Bf6 {[%emt 0:02:08] [#]} 35.
Nc6 {[%emt 0:00:23]} Rg8 {[%emt 0:01:16]} 36. Rg3 {[%emt 0:00:57]} Rxg3 {
[%emt 0:01:41]} 37. hxg3 {[%emt 0:00:18]} Kg6 {[%emt 0:00:02]} 38. g4 {[%emt 0:
00:00]} Nc5 {[%emt 0:02:16]} 39. Be3 {[%emt 0:01:35]} Nd7 {[%emt 0:00:17]} 40.
f3 {[%emt 0:00:14] Black must now prevent g3.} Nb8 {[%emt 0:00:08]} 41. Nb4 {
[%emt 0:30:25]} Nd7 {[%emt 0:30:02]} 42. g3 {[%emt 0:00:10] Against Bh4} h5 {
[%emt 0:00:52]} (42... Bg7 $142 43. Nc6 Nf6) 43. gxh5+ {[%emt 0:02:12]} Kxh5 {
[%emt 0:00:04]} 44. Rh2+ {[%emt 0:00:13]} Kg6 {[%emt 0:00:07]} 45. Kf1 {
[%emt 0:01:17]} Bg7 {[%emt 0:01:29]} 46. Rh4 {[%emt 0:01:54]} Bf6 {[%emt 0:00:
00]} (46... Nb8 $142 47. Ke2 Kf7) 47. Rh6+ {[%emt 0:00:34]} Kg7 {[%emt 0:00:11]
} 48. Rh5 {[%emt 0:00:35]} Kg6 {[%emt 0:00:23]} 49. g4 {[%emt 0:00:20]} Bg7 {
[%emt 0:01:10]} 50. Nc6 {[%emt 0:01:32]} Nf6 {[%emt 0:01:16]} 51. Rh4 {[%emt 0:
00:00]} Ng8 {[%emt 0:01:10]} 52. Ke2 {[%emt 0:00:44]} Bf6 {[%emt 0:00:06]} 53.
Rh5 {[%emt 0:00:47]} Bg7 {[%emt 0:01:09]} 54. Rg5+ {[%emt 0:01:22]} Kf7 {
[%emt 0:00:15]} 55. Rf5+ {[%emt 0:00:26]} Kg6 {[%emt 0:00:10]} 56. Rg5+ {
[%emt 0:01:33]} Kf7 {[%emt 0:00:05]} 57. f4 {[%emt 0:01:34]} Bf6 {[%emt 0:00:
00]} 58. Rh5 {[%emt 0:00:21]} exf4 {[%emt 0:00:08]} 59. Bxf4 {[%emt 0:00:07]}
Kg6 {[%emt 0:00:07]} 60. Kf3 {[%emt 0:00:26]} Bg7 {[%emt 0:00:54]} 61. Rg5+ {
[%emt 0:01:38]} Kf7 {[%emt 0:00:04]} 62. Rf5+ {[%emt 0:02:19]} Kg6 {[%emt 0:00:
00]} 63. Bg5 {[%emt 0:01:04]} Bf6 {[%emt 0:01:40]} 64. Kf4 {[%emt 0:01:48]}
Bxg5+ {[%emt 0:01:53]} 65. Rxg5+ {[%emt 0:00:07] Endgame KRN-KRN} Kf7 {[%emt 0:
00:06]} 66. Nd4 {[%emt 0:00:13] [#] Intending Ne6 and mate.} Ne7 {[%emt 0:01:
22]} 67. Ne6 {[%emt 0:00:57] White wants to mate with Rg7+.} Ng6+ {[%emt 0:00:
42]} 68. Kf5 {[%emt 0:00:57]} Ne7+ {[%emt 0:00:21]} 69. Ke4 {[%emt 0:00:25]
Threatening mate with Rg7+.} Ng6 {[%emt 0:00:02]} 70. Rf5+ {[%emt 0:01:25]} Ke7
{[%emt 0:03:26]} 71. Rh5 {[%emt 0:00:18] Rh7+ would kill now.} Rh8 {[%emt 0:03:
01] Against Rh7+} 72. Rxh8 {[%emt 0:01:20]} Nxh8 {[%emt 0:00:02]} 73. Nd4 {
[%emt 0:00:08] Weighted Error Value: White=0.25 (precise) /Black=0.28 (precise)
} 1-0

[Event "44th Chess Olympiad Open 2022"]
[Site "Chennai"]
[Date "2022.07.29"]
[Round "1.13"]
[White "Alfaro, William"]
[Black "Maghsoodloo, Parham"]
[Result "0-1"]
[WhiteElo "2155"]
[BlackElo "2701"]
[Annotator "TA"]
[PlyCount "78"]
[EventDate "2022.??.??"]
[TimeControl "60"]

{[%evp 13,78,29,24,6,9,22,31,42,52,35,38,36,37,41,88,49,45,36,20,0,48,23,11,25,
80,85,279,293,328,316,312,297,266,111,116,27,40,-116,-18,-13,0,-50,0,0,0,-11,
-10,-8,-7,-61,-68,-77,-81,-106,-133,-147,-143,-129,-149,-142,-133,-150,-129,
-355,-343,-369,-288]} 1. d4 {[%emt 0:00:04] Grover,S} Nf6 {[%emt 0:00:10]} 2.
c4 {[%emt 0:00:28]} e6 {[%emt 0:00:14]} 3. Nf3 {[%emt 0:00:17]} Bb4+ {[%emt 0:
00:00]} 4. Nbd2 {[%emt 0:01:06]} O-O {[%emt 0:04:27]} 5. a3 {[%emt 0:00:12]}
Be7 {[%emt 0:07:10]} 6. e4 {[%emt 0:00:18][%cal Ye2e4,Ye4e5]} d5 {[%emt 0:02:
02]} 7. e5 {[%emt 0:04:18]} Nfd7 {[%emt 0:00:11]} 8. Bd3 {[%emt 0:00:00] E11:
Bogo-Indian.} c5 $1 {[%emt 0:00:10]} 9. h4 {[%emt 0:00:04][%cal Yd3h7]} h6 {
[%emt 0:03:46]} 10. Bb1 {[%emt 0:09:31] White is slightly better.} Re8 {
[%emt 0:06:30]} 11. Qc2 {[%emt 0:03:26] White wants to mate with Qh7+.} Nf8 {
[%emt 0:00:07] Against Qh7+} 12. dxc5 $1 {[%emt 0:05:36]} a5 {[%emt 0:00:00]}
13. Nf1 {[%emt 0:11:27][%cal Yc1h6] [#]} Nbd7 $146 {[%emt 0:07:02]} (13... Qc7
$14) ({Predecessor:} 13... Bxc5 14. cxd5 Qxd5 15. Bxh6 gxh6 16. Qa4 Nfd7 17.
Qf4 Kg7 18. Rh3 Rh8 19. Be4 Qc4 20. Rc1 Qb5 21. Ng5 Bxf2+ 22. Kxf2 Qxb2+ 23.
Rc2 Qd4+ 24. Ke2 Nxe5 25. Rd3 {1-0 (25) Grover,S (2492)-Mareco,S (2585) Durban
2014 CBM 164 [Grover,S]}) 14. Rh3 {[%emt 0:09:57][%cal Yc1h6] Black must now
prevent Bxh6!} (14. cxd5 $6 exd5 15. Be3 Qc7 $15) 14... Qc7 $1 {[%emt 0:05:49]}
15. Bf4 {[%emt 0:02:57]} dxc4 {[%emt 0:08:06]} (15... Ng6 $2 16. h5 $1 Ngf8 17.
Rg3 $18) 16. Rg3 $36 {[%emt 0:14:07] And now Bxh6 would win. White has the
initiative.} h5 {[%emt 0:03:20]} (16... Nxc5 $11 17. Qxc4 b5) 17. Ne3 {[%emt 0:
07:34]} (17. N1d2 $5 {[%cal Rd2c4]}) 17... Qxc5 {[%emt 0:02:42] Threatens to
win with ...b5.} 18. Nxc4 {[%emt 0:05:47] Strongly threatening Be3.} Ra6 {
[%emt 0:05:33]} (18... b6 $11 {remains equal.}) 19. Qe2 $1 $16 {[%emt 0:21:50]}
Rc6 $2 {[%emt 0:14:49]} (19... b5 $16 20. Nd6 Bxd6) 20. Bd3 $18 {[%emt 0:00:17]
} b5 {[%emt 0:03:23]} 21. Nxa5 {[%emt 0:00:42]} Ra6 {[%emt 0:06:12]} 22. Nb3 {
[%emt 0:00:10]} Qd5 {[%emt 0:01:08]} 23. Nbd2 {[%emt 0:00:51]} ({Less strong is
} 23. Bxb5 Qxb3 24. Nd2 (24. Bxa6 $2 {is the wrong capture.} Bxa6 25. Qxa6 Nc5
$19) 24... Qb4 $11) (23. Nfd4 $18 {is more deadly.}) 23... Nc5 $16 {[%emt 0:01:
53]} 24. Be4 {[%emt 0:00:33]} (24. Bc2 $16) 24... Nxe4 $11 {[%emt 0:00:52]} 25.
Qxe4 {[%emt 0:00:09]} (25. Nxe4 $14 {is the one way to stay ahead.} Ra4 26.
Nf6+ (26. Nc3 Bb4 $11) 26... Bxf6 27. exf6) 25... Qxe4+ {[%emt 0:01:26]} ({
Black should try} 25... Ra4 $17 26. Qxd5 exd5) 26. Nxe4 {[%emt 0:00:02]} Ra4 {
[%emt 0:00:02]} 27. Nfd2 {[%emt 0:01:17]} (27. Nf6+ $1 $11 Bxf6 28. exf6 Rxf4
29. Rxg7+ Kh8 30. Rxf7) 27... Ng6 {[%emt 0:00:00]} (27... Bb7 $15 28. Re3 Ng6)
28. Bg5 {[%emt 0:00:41]} Nxe5 {[%emt 0:00:00]} 29. Bf6 {[%emt 0:00:15]} Ng6 {
[%emt 0:00:28][%cal Ye5g6,Yg6h4,Yh4g2]} 30. Bxe7 {[%emt 0:00:26]} Rxe7 {
[%emt 0:00:04]} 31. Rc1 {[%emt 0:00:13]} (31. b4 $11) 31... Bb7 $15 {[%emt 0:
00:12]} 32. b4 {[%emt 0:01:03]} Nxh4 {[%emt 0:00:28]} 33. Nf6+ {[%emt 0:00:38]
[#]} Kh8 $1 {[%emt 0:00:07]} 34. Nxh5 {[%emt 0:00:05] [#]} g6 $1 {[%emt 0:00:
51]} 35. Nf4 {[%emt 0:00:16]} e5 {[%emt 0:00:11]} 36. Ne2 {[%emt 0:01:08]
Hoping for Rh3.} Nxg2+ {[%emt 0:00:16]} 37. Kf1 {[%emt 0:00:04]} Nf4 {[%emt 0:
00:55] Black is more active.} 38. Nc3 $2 {[%emt 0:00:11]} (38. Re3 $17 {
is a better defense.} Rd7 39. Ne4) 38... Rxa3 $19 {[%emt 0:00:35]} 39. Nxb5 {
[%emt 0:00:08]} Ra4 {[%emt 0:01:27] Never resign too early! Weighted Error
Value: White=0.33/Black=0.16 (very precise)} 0-1

[Event "44th Chess Olympiad Open 2022"]
[Site "Chennai"]
[Date "2022.07.29"]
[Round "1.13"]
[White "Salazar Cabezas, Alberto Javier"]
[Black "Mousavi, Seyed Khalil"]
[Result "0-1"]
[WhiteElo "2155"]
[BlackElo "2537"]
[Annotator "TA"]
[PlyCount "70"]
[EventDate "2022.??.??"]
[TimeControl "60"]

{[%evp 10,70,29,12,10,0,8,-23,0,-37,-27,-47,-12,-48,-25,-72,-18,-22,-22,-24,0,
0,0,0,0,-12,-41,-56,-56,-70,-56,-59,-52,-61,-33,-191,-173,-198,-204,-199,-193,
-260,-271,-231,-187,-240,-234,-287,-272,-275,-281,-270,-266,-702,-690,-1114,
-1114,-2162,-2026,-1993,-1778,-1663,-1573]} 1. e4 {[%emt 0:00:05]} e5 {[%emt 0:
00:00]} 2. Nf3 {[%emt 0:00:13]} Nc6 {[%emt 0:00:15]} 3. Bc4 {[%emt 0:00:04]}
Nf6 {[%emt 0:00:37]} 4. d3 {[%emt 0:00:19]} Bc5 {[%emt 0:00:31]} 5. c3 {
[%emt 0:00:17]} d6 {[%emt 0:01:08]} 6. Nbd2 {[%emt 0:01:10]} (6. O-O {feels
hotter.} O-O 7. Bg5 h6 8. Bh4) 6... a5 {[%emt 0:02:04][%cal Ya7a5,Ya5a4] C54:
Giuoco Piano: 4 c3 Nf6, main lines with 5 d4 and 5 d3.} 7. h3 {[%emt 0:02:50]}
(7. O-O {with more complications.} O-O 8. Re1 Ng4 9. Re2) 7... O-O {[%emt 0:01:
44]} 8. Qe2 {[%emt 0:00:30]} Be6 {[%emt 0:07:44] Black has an edge.} (8... a4 {
seems wilder.} 9. O-O Nh5 10. Qd1 Nf4) 9. Bb3 {[%emt 0:10:03]} a4 {[%emt 0:04:
50]} 10. Bc2 {[%emt 0:00:30] [#]} h6 $146 {[%emt 0:00:30]} ({Predecessor:} 
10... d5 11. Nf1 d4 12. Ng3 h6 13. O-O b5 14. a3 dxc3 15. bxc3 Bb3 16. Rb1 Bxc2
17. Qxc2 {½-½ (68) Wang,H (2756)-Petrov,N (2585) Moscow 2019}) 11. Nf1 {
[%emt 0:00:30]} b5 {[%emt 0:03:46]} 12. Be3 {[%emt 0:11:03]} (12. Ng3 $1 $11 {
should be considered.}) 12... Qe7 {[%emt 0:09:40]} ({Black should try} 12...
Bxe3 $17 13. Nxe3 d5) 13. Ng3 $11 {[%emt 0:13:49]} Bxe3 {[%emt 0:00:00]} 14.
Qxe3 {[%emt 0:10:38]} a3 {[%emt 0:03:46]} 15. b3 {[%emt 0:01:43]} d5 {[%emt 0:
03:24]} 16. O-O {[%emt 0:02:21]} Rad8 {[%emt 0:06:41]} 17. d4 {[%emt 0:00:00]}
exd4 {[%emt 0:01:22]} 18. Nxd4 {[%emt 0:09:44]} Nxd4 {[%emt 0:04:03]} 19. cxd4
{[%emt 0:01:17]} dxe4 {[%emt 0:00:13]} 20. Bxe4 {[%emt 0:01:33]} Qb4 {[%emt 0:
02:44]} 21. Rfd1 {[%emt 0:02:08]} Rfe8 {[%emt 0:04:30]} 22. Bc6 $2 {[%emt 0:06:
24] [#] Now White is beyond hope.} (22. Qf4 $15) 22... Bd7 $19 {[%emt 0:08:49]}
23. Qf3 {[%emt 0:00:14]} Bxc6 {[%emt 0:09:42]} 24. Qxc6 {[%emt 0:00:03]} Rxd4 {
[%emt 0:00:33]} 25. Qxc7 {[%emt 0:04:14]} (25. Rdc1 $142) 25... Rxd1+ {[%emt 0:
01:02]} 26. Rxd1 {[%emt 0:00:02]} Re1+ {[%emt 0:00:46]} 27. Rxe1 {[%emt 0:00:
45]} Qxe1+ {[%emt 0:00:06] Endgame KQN-KQN} 28. Nf1 {[%emt 0:01:23]} Qb1 {
[%emt 0:01:27] Active counter play!} 29. Qd8+ {[%emt 0:01:09]} Kh7 {[%emt 0:00:
10]} 30. Qd2 {[%emt 0:00:09]} Ne4 {[%emt 0:00:00]} 31. Qd5 {[%emt 0:02:29]} (
31. Qd4) 31... Nc3 {[%emt 0:01:47] Black is clearly winning.} 32. Qxf7 {
[%emt 0:01:12]} Nxa2 {[%emt 0:01:27] [#] And now .. .Nc1 would win.} ({
Stronger than} 32... Ne2+ 33. Kh2 $11) 33. Kh2 {[%emt 0:00:00]} Nb4 {[%emt 0:
05:13]} ({Worse is} 33... Qxf1 34. Qf5+ g6 35. Qf7+ Kh8 36. Qf8+ Kh7 37. Qf7+
Kh8 38. Qf8+ Kh7 39. Qf7+ $11) 34. Nd2 {[%emt 0:00:54]} Qg6 {[%emt 0:01:22]}
35. Qa7 {[%emt 0:01:01]} Qd6+ {[%emt 0:00:09] Weighted Error Value: White=0.78/
Black=0.07 (flawless)} 0-1